bitfinex/quotes_SOLUSD_20251120
["timestamp","ask_amount","ask_price","bid_price","bid_amount"]
[1763675188440,0.69,134.68,134.6,27.90978769]
[1763675188639,7.68827689,134.64,134.61,9.93098926]
[1763675188845,0.69,134.68,134.61,11.71098926]
[1763675188846,18.12096,134.67,134.61,11.71098926]
[1763675189052,7.68827689,134.64,134.61,11.71098926]
[1763675189758,7.68827689,134.63,134.61,1.78]
[1763675189958,7.68827689,134.64,134.61,1.78]
[1763675190163,4.93098292,134.66,134.61,1.78]
[1763675190463,12.61925981,134.66,134.62,0.14216157]
[1763675190634,7.68827689,134.66,134.62,0.14216157]
[1763675191229,3.57837665,134.66,134.62,0.14216157]
[1763675191531,7.68827689,134.65,134.62,0.14216157]
[1763675192136,0.67,134.64,134.61,1.78]
[1763675192462,4.93544455,134.68,134.61,1.78]
[1763675192463,7.68827689,134.65,134.61,1.78]
[1763675193256,3.08493778,134.64,134.61,1.78]
[1763675193433,4.93544455,134.68,134.62,9.93098926]
[1763675193636,7.68827689,134.66,134.62,9.93098926]
[1763675194356,7.68827689,134.65,134.62,9.93098926]
[1763675194537,7.68827689,134.64,134.61,1.78]
[1763675194733,7.68827689,134.65,134.61,1.78]
[1763675195349,1.98807395,134.65,134.61,1.78]
[1763675195558,7.68827689,134.64,134.61,1.78]
[1763675195964,8.35827689,134.64,134.61,1.78]
[1763675196269,7.68827689,134.63,134.62,1.78]
[1763675196481,8.35827689,134.63,134.62,1.78]
[1763675197158,5.60544455,134.63,134.62,1.78]
[1763675197350,4.29119175,134.63,134.62,1.78]
[1763675197547,9.2266363,134.63,134.62,1.78]
[1763675197749,32.34245551,134.63,134.56,9.78882769]
[1763675198049,7.68827689,134.59,134.57,1.78]
[1763675198643,7.68827689,134.58,134.57,1.78]
[1763675199243,12.62372144,134.58,134.57,1.78]
[1763675199469,23.05640455,134.58,134.57,1.78]
[1763675199651,30.74468144,134.58,134.57,1.78]
[1763675201540,26.69127097,134.58,134.57,1.78]
[1763675201836,25.80923689,134.58,134.57,1.78]
[1763675203140,0.67,134.62,134.57,2.47]
[1763675203467,7.68827689,134.6,134.57,2.47]
[1763675203769,7.68827689,134.6,134.57,1.78]
[1763675203946,7.68827689,134.6,134.57,2.47]
[1763675204865,7.68827689,134.59,134.57,2.47]
[1763675205067,7.68827689,134.58,134.57,1.78]
[1763675205678,0.67,134.61,134.57,1.78]
[1763675205855,7.68827689,134.62,134.58,10.62098926]
[1763675206257,7.68827689,134.62,134.59,0.69]
[1763675206442,7.68827689,134.61,134.59,0.69]
[1763675206843,0.67,134.65,134.59,0.69]
[1763675207067,7.68827689,134.62,134.59,0.69]
[1763675207244,7.68827689,134.61,134.58,9.93098926]
[1763675207565,7.68827689,134.61,134.58,10.62098926]
[1763675207778,3.67765187,134.61,134.58,10.62098926]
[1763675209046,3.67765187,134.61,134.58,9.93098926]
[1763675209363,3.67765187,134.61,134.59,0.69]
[1763675209543,0.67,134.63,134.6,1.78]
[1763675209741,3.32763773,134.62,134.6,1.78]
[1763675210846,7.68827689,134.64,134.61,0.69]
[1763675211170,0.7,134.66,134.62,9.93098926]
[1763675211171,7.68827689,134.65,134.62,9.93098926]
[1763675211368,7.68827689,134.65,134.63,1.78]
[1763675211869,0.7,134.66,134.63,1.78]
[1763675212082,7.68827689,134.65,134.63,1.78]
[1763675213078,0.1,134.69,134.64,18.30926615]
[1763675213265,0.1,134.69,134.66,9.93098926]
[1763675213464,0.1,134.69,134.67,1.78]
[1763675213981,7.68827689,134.7,134.67,2.5]
[1763675214180,7.68827689,134.68,134.67,1.78]
[1763675215981,18.12096,134.69,134.67,1.78]
[1763675216181,7.68827689,134.68,134.67,1.78]
[1763675216761,7.68827689,134.68,134.64,0.72]
[1763675216970,7.68827689,134.68,134.66,1.78]
[1763675218056,18.82096,134.69,134.66,1.78]
[1763675218359,18.12096,134.69,134.67,0.72]
[1763675218558,7.68827689,134.7,134.67,0.72]
[1763675218867,7.68827689,134.71,134.67,0.72]
[1763675219276,0.7,134.74,134.67,0.72]
[1763675219277,7.68827689,134.72,134.67,0.72]
[1763675220584,0.7,134.74,134.67,0.72]
[1763675220585,7.68827689,134.71,134.67,0.72]
[1763675220794,18.12096,134.74,134.67,0.72]
[1763675220795,7.68827689,134.74,134.69,7.83043846]
[1763675220999,7.68827689,134.71,134.66,9.93098926]
[1763675221205,0.7,134.76,134.7,9.93098926]
[1763675221488,0.1,134.77,134.7,9.93098926]
[1763675221691,7.68827689,134.75,134.71,0.72]
[1763675221872,7.68827689,134.73,134.71,0.72]
[1763675222190,100.1,134.77,134.71,0.72]
[1763675222482,7.68827689,134.73,134.71,0.72]
[1763675222671,7.68827689,134.74,134.71,0.72]
[1763675223060,7.68827689,134.75,134.71,0.72]
[1763675223277,0.1,134.77,134.72,17.61926615]
[1763675223587,7.78827689,134.77,134.73,2.5]
[1763675223768,7.68827689,134.78,134.73,10.18827689]
[1763675223971,4.9512014,134.8,134.74,0.72]
[1763675224182,2.15269715,134.77,134.74,0.72]
[1763675226172,7.68827689,134.77,134.74,0.72]
[1763675226574,7.68827689,134.75,134.73,1.78]
[1763675226780,18.12096,134.76,134.73,1.78]
[1763675227093,7.68827689,134.75,134.73,1.78]
[1763675227284,7.68827689,134.75,134.73,2.5]
[1763675227483,7.68827689,134.74,134.73,1.78]
[1763675227678,7.68827689,134.74,134.73,2.5]
[1763675228273,0.7,134.78,134.73,1.78]
[1763675228477,7.68827689,134.76,134.74,0.72]
[1763675229395,25.80923689,134.77,134.74,0.72]
[1763675229571,7.68827689,134.77,134.74,0.72]
[1763675230176,7.68827689,134.78,134.74,0.72]
[1763675230489,7.68827689,134.8,134.76,0.14216157]
[1763675230896,7.68827689,134.8,134.77,0.72]
[1763675231070,0.7,134.84,134.78,9.93098926]
[1763675231275,7.68827689,134.8,134.77,0.72]
[1763675231477,7.68827689,134.79,134.76,1.78]
[1763675231678,18.82096,134.8,134.76,2.5]
[1763675231875,7.68827689,134.78,134.76,2.5]
[1763675232702,18.82096,134.8,134.76,2.5]
[1763675232885,7.68827689,134.79,134.77,0.72]
[1763675233293,18.12096,134.8,134.77,0.72]
[1763675233602,7.68827689,134.79,134.77,0.72]
[1763675234389,3.58938002,134.79,134.77,0.72]
[1763675234600,18.12096,134.8,134.77,0.72]
[1763675234802,7.68827689,134.79,134.77,0.72]
[1763675235176,0.7,134.82,134.77,0.72]
[1763675235177,7.68827689,134.82,134.78,9.93098926]
[1763675235410,7.68827689,134.8,134.77,0.72]
[1763675236506,1.7720272,134.8,134.77,0.72]
[1763675236894,18.82096,134.82,134.77,0.72]
[1763675236895,18.12096,134.82,134.77,0.72]
[1763675237101,0.8,134.85,134.78,9.93098926]
[1763675237286,0.8,134.85,134.79,1.78]
[1763675237287,18.12096,134.83,134.79,1.78]
[1763675237610,7.68827689,134.82,134.8,0.72]
[1763675239506,7.68827689,134.81,134.79,1.78]
[1763675239807,7.68827689,134.8,134.79,1.78]
[1763675240111,8.38827689,134.8,134.76,1.78]
[1763675240411,7.68827689,134.77,134.76,1.78]
[1763675240600,3.5685694,134.78,134.76,1.78]
[1763675240798,7.68827689,134.77,134.76,1.78]
[1763675240990,7.68827689,134.77,134.73,1.78]
[1763675241184,7.68827689,134.76,134.73,2.45]
[1763675241716,7.68827689,134.76,134.73,1.78]
[1763675242024,7.68827689,134.76,134.74,0.67]
[1763675242506,7.68827689,134.76,134.73,2.45]
[1763675242716,1.52764859,134.76,134.73,2.45]
[1763675242913,1.52764859,134.76,134.74,0.67]
[1763675243118,7.68827689,134.75,134.73,1.78]
[1763675243289,0.66,134.77,134.73,12.23882769]
[1763675243495,18.78096,134.79,134.73,12.23882769]
[1763675243698,7.68827689,134.76,134.73,12.23882769]
[1763675243901,18.78096,134.79,134.74,0.67]
[1763675244099,7.68827689,134.78,134.74,0.67]
[1763675244516,7.68827689,134.78,134.74,8.35827689]
[1763675244713,2.19566272,134.78,134.75,0.67]
[1763675244917,11.99911995,134.78,134.75,0.67]
[1763675245426,11.99911995,134.79,134.76,11.71098926]
[1763675245608,11.99911995,134.8,134.76,23.71010921]
[1763675245931,11.99911995,134.8,134.77,0.67]
[1763675246888,18.78096,134.83,134.77,0.67]
[1763675247299,11.99911995,134.8,134.77,0.67]
[1763675247895,11.99911995,134.79,134.77,0.67]
[1763675248420,4.93977727,134.82,134.79,18.12096]
[1763675248721,0.1,134.86,134.83,0.14216157]
[1763675248922,6.65864651,134.89,134.84,11.56882769]
[1763675249214,6.65864651,134.89,134.83,0.14216157]
[1763675249215,11.99911995,134.85,134.83,1.78]
[1763675249799,11.99911995,134.85,134.83,2.45]
[1763675250222,11.99911995,134.86,134.83,2.45]
[1763675250424,11.99911995,134.88,134.84,10.45882769]
[1763675250625,11.99911995,134.87,134.84,0.67]
[1763675251003,6.71871275,134.87,134.84,0.67]
[1763675251333,4.93816587,134.88,134.84,0.67]
[1763675251537,4.93816587,134.88,134.83,1.78]
[1763675251538,11.99911995,134.85,134.83,1.78]
[1763675251720,11.99911995,134.86,134.83,1.78]
[1763675252045,11.99911995,134.86,134.83,2.45]
[1763675252215,11.99911995,134.86,134.83,1.78]
[1763675252539,11.99911995,134.86,134.83,2.45]
[1763675253257,5.96076555,134.86,134.83,1.78]
[1763675253801,11.99911995,134.86,134.83,1.78]
[1763675254024,4.94009437,134.87,134.83,1.78]
[1763675254225,11.99911995,134.86,134.83,1.78]
[1763675255204,9.10452994,134.86,134.83,1.78]
[1763675256616,11.99911995,134.84,134.83,1.78]
[1763675256832,16.96929479,134.84,134.83,1.78]
[1763675257033,12.66911995,134.84,134.79,9.93098926]
[1763675257237,5.61009437,134.84,134.8,1.78]
[1763675257443,11.99911995,134.83,134.8,1.78]
[1763675257740,11.99911995,134.83,134.8,2.45]
[1763675258124,16.43921432,134.83,134.8,2.45]
[1763675258334,11.99911995,134.84,134.8,2.45]
[1763675258642,16.95781004,134.86,134.81,22.60010921]
[1763675258944,4.95869009,134.85,134.81,22.60010921]
[1763675259144,4.95869009,134.85,134.82,0.67]
[1763675259309,18.79096,134.88,134.83,1.78]
[1763675259310,11.99911995,134.86,134.83,1.78]
[1763675259643,11.99911995,134.85,134.83,1.78]
[1763675259848,50.1,134.9,134.84,40.72106921]
[1763675259849,0.1,134.9,134.84,40.72106921]
[1763675260011,11.99911995,134.88,134.84,0.67]
[1763675260216,5.07542745,134.9,134.84,0.67]
[1763675260217,11.99911995,134.87,134.84,0.67]
[1763675261326,5.63265085,134.87,134.84,0.67]
[1763675262542,30.12007995,134.89,134.84,0.67]
[1763675262728,4.9805689,134.88,134.84,0.67]
[1763675263256,4.9805689,134.88,134.84,12.66911995]
[1763675263421,30.89007995,134.9,134.84,12.66911995]
[1763675263918,11.99911995,134.89,134.84,0.67]
[1763675264335,18.22096,134.9,134.84,12.66911995]
[1763675264541,30.22007995,134.9,134.84,12.66911995]
[1763675264740,30.22007995,134.9,134.85,0.67]
[1763675264919,30.22007995,134.9,134.86,1.78]
[1763675265116,12.66911995,134.89,134.86,1.78]
[1763675266426,11.99911995,134.88,134.86,1.78]
[1763675266832,0.67,134.89,134.86,1.78]
[1763675266833,5.68879521,134.89,134.86,1.78]
[1763675267242,18.22096,134.9,134.86,2.45]
[1763675267442,12.13972232,134.9,134.86,1.78]
[1763675267757,5.01879521,134.89,134.86,1.78]
[1763675268853,11.46972232,134.9,134.86,2.45]
[1763675269521,5.11879521,134.91,134.86,2.45]
[1763675269724,5.78879521,134.91,134.86,2.45]
[1763675271648,5.01879521,134.9,134.87,0.72]
[1763675271819,3.71124225,134.91,134.87,0.72]
[1763675272151,5.01879521,134.9,134.87,0.72]
[1763675273252,8.73003746,134.91,134.87,0.72]
[1763675273629,4.92527956,134.91,134.87,0.72]
[1763675274551,23.13623956,134.91,134.87,0.72]
[1763675275437,23.04623956,134.91,134.87,0.72]
[1763675275767,21.49696622,134.91,134.87,0.72]
[1763675275950,21.58696622,134.91,134.87,0.72]
[1763675276445,16.56817101,134.91,134.87,0.72]
[1763675276628,5.01879521,134.9,134.87,0.72]
[1763675277752,16.63821915,134.91,134.87,0.72]
[1763675278533,0.09,134.92,134.87,0.72]
[1763675278534,5.01879521,134.93,134.87,0.72]
[1763675279049,5.01879521,134.93,134.87,5.73879521]
[1763675279230,5.01879521,134.93,134.88,9.93098926]
[1763675279429,5.01879521,134.93,134.88,10.65098926]
[1763675279649,5.01879521,134.93,134.89,0.72]
[1763675279951,11.58593989,134.93,134.89,0.72]
[1763675280664,16.6047351,134.93,134.89,0.72]
[1763675280836,5.10879521,134.92,134.86,2.5]
[1763675281028,5.01879521,134.91,134.86,2.5]
[1763675281562,5.01879521,134.9,134.86,1.78]
[1763675281730,5.10879521,134.9,134.86,1.78]
[1763675281930,5.01879521,134.9,134.86,2.5]
[1763675282541,22.77735295,134.91,134.86,2.5]
[1763675283356,5.01879521,134.89,134.86,2.5]
[1763675283537,5.01879521,134.9,134.86,2.5]
[1763675284334,5.01879521,134.88,134.86,1.78]
[1763675284662,5.01879521,134.87,134.83,1.78]
[1763675284832,5.01879521,134.88,134.84,0.72]
[1763675285175,101.78,134.92,134.84,0.72]
[1763675285460,5.01879521,134.89,134.84,0.72]
[1763675285940,23.13975521,134.89,134.84,0.72]
[1763675286138,4.97350514,134.88,134.84,0.72]
[1763675287942,2.37124065,134.88,134.84,0.72]
[1763675288146,18.12096,134.89,134.85,5.01879521]
[1763675288345,18.12096,134.89,134.86,0.72]
[1763675288559,23.13975521,134.89,134.85,0.72]
[1763675289265,18.12096,134.89,134.85,0.72]
[1763675290046,13.59069257,134.89,134.85,0.72]
[1763675290354,13.59069257,134.89,134.85,5.73879521]
[1763675290543,6.28606824,134.94,134.86,5.01879521]
[1763675290544,50.1,134.94,134.86,5.01879521]
[1763675290747,5.01879521,134.93,134.87,5.01879521]
[1763675290947,51.88,134.94,134.87,5.73879521]
[1763675291169,5.01879521,134.93,134.88,0.72]
[1763675291969,51.88,134.94,134.88,0.72]
[1763675292172,10.65978074,134.92,134.88,0.72]
[1763675292384,5.01879521,134.92,134.86,1.78]
[1763675292551,5.01879521,134.89,134.86,1.78]
[1763675292745,5.01879521,134.9,134.86,2.5]
[1763675292962,5.01879521,134.89,134.86,2.5]
[1763675293166,5.01879521,134.9,134.86,1.78]
[1763675293370,5.01879521,134.89,134.86,1.78]
[1763675294670,5.13061506,134.88,134.86,2.5]
[1763675294980,5.13061506,134.87,134.86,2.5]
[1763675295564,5.13061506,134.87,134.86,1.78]
[1763675296143,10.14941027,134.87,134.77,5.01879521]
[1763675296345,5.01879521,134.8,134.74,0.72]
[1763675296544,18.12096,134.81,134.73,0.2]
[1763675296545,5.01879521,134.76,134.73,0.2]
[1763675296762,5.13061506,134.75,134.73,0.2]
[1763675296962,12.00480899,134.79,134.74,0.72]
[1763675297161,5.52157799,134.78,134.74,0.72]
[1763675297471,5.52157799,134.77,134.76,12.00480899]
[1763675297673,18.12096,134.83,134.77,9.93098926]
[1763675297852,5.51400165,134.82,134.79,12.00480899]
[1763675298053,18.12096,134.83,134.79,12.00480899]
[1763675298054,5.51400165,134.81,134.8,2.5]
[1763675298267,17.14906032,134.83,134.8,2.5]
[1763675298577,5.51192166,134.82,134.81,0.72]
[1763675298875,5.51192166,134.82,134.8,2.5]
[1763675299059,17.14906032,134.83,134.8,2.5]
[1763675299380,17.14906032,134.83,134.8,1.78]
[1763675299848,17.14906032,134.83,134.8,2.5]
[1763675300045,4.99365599,134.82,134.8,2.5]
[1763675300550,0.59697055,134.82,134.8,0.72]
[1763675300766,0.59697055,134.82,134.8,2.5]
[1763675301362,0.59697055,134.82,134.81,0.71]
[1763675302060,17.14906032,134.83,134.81,0.71]
[1763675302460,13.48122855,134.83,134.81,0.71]
[1763675303062,13.48122855,134.83,134.8,1.78]
[1763675304154,13.48122855,134.83,134.81,0.71]
[1763675304586,10.26479473,134.83,134.8,1.78]
[1763675305254,170.53895633,134.89,134.82,7.65270595]
[1763675305450,50.0,134.9,134.82,7.65270595]
[1763675305451,7.65270595,134.88,134.82,7.65270595]
[1763675305650,50.0,134.9,134.8,1.78]
[1763675305651,7.65270595,134.89,134.83,8.36270595]
[1763675305879,7.65270595,134.88,134.84,1.78]
[1763675306557,18.12096,134.87,134.84,1.78]
[1763675306757,18.12096,134.87,134.84,2.49]
[1763675307193,50.0,134.9,134.84,2.49]
[1763675307194,7.65270595,134.9,134.85,8.36270595]
[1763675307488,56.33895633,134.94,134.86,7.65270595]
[1763675307655,7.65270595,134.92,134.87,7.65270595]
[1763675307856,7.65270595,134.93,134.88,1.78]
[1763675308166,18.12096,134.9,134.88,2.49]
[1763675308573,13.82092759,134.9,134.88,2.49]
[1763675308783,7.65270595,134.91,134.88,1.78]
[1763675308983,7.65270595,134.9,134.86,0.71]
[1763675309289,7.65270595,134.89,134.87,1.78]
[1763675309477,50.0,134.92,134.87,1.78]
[1763675309783,7.65270595,134.89,134.87,1.78]
[1763675310292,50.0,134.92,134.87,2.49]
[1763675310485,7.65270595,134.9,134.87,1.78]
[1763675310674,17.36995799,134.89,134.87,1.78]
[1763675310865,7.65270595,134.9,134.87,1.78]
[1763675311371,7.65270595,134.88,134.85,2.49]
[1763675312371,4.98596419,134.91,134.85,2.45]
[1763675312569,7.65270595,134.88,134.85,2.45]
[1763675312761,0.65370802,134.88,134.85,2.45]
[1763675313084,5.63967221,134.88,134.85,2.45]
[1763675314389,0.1,134.94,134.92,0.14216157]
[1763675314684,0.1,135.0,134.98,0.14216157]
[1763675314886,18.12096,135.04,134.99,1.78]
[1763675315090,18.12096,135.04,134.99,9.43270595]
[1763675316158,7.65270595,135.06,135.0,7.65270595]
[1763675316557,18.12096,135.03,135.0,7.65270595]
[1763675316858,0.67,135.05,135.0,7.65270595]
[1763675317062,0.67,135.05,135.01,7.65270595]
[1763675317286,0.67,135.09,135.03,7.65270595]
[1763675317490,0.67,135.08,135.04,7.65270595]
[1763675317965,0.67,135.08,135.03,9.43270595]
[1763675318165,57.72741479,135.15,135.04,17.58369521]
[1763675318365,7.65270595,135.1,135.04,7.65270595]
[1763675318567,7.65270595,135.07,135.04,1.8]
[1763675318769,7.65270595,135.07,135.01,0.67]
[1763675318770,0.67,135.06,135.01,9.45270595]
[1763675318970,25.77366595,135.08,135.02,8.32270595]
[1763675319588,7.65270595,135.07,135.02,8.32270595]
[1763675320194,25.77366595,135.08,135.02,8.32270595]
[1763675320581,7.65270595,135.06,135.01,1.8]
[1763675320802,7.65270595,135.05,135.01,1.8]
[1763675321092,7.65270595,135.04,134.99,18.11153364]
[1763675321271,7.65270595,135.04,135.01,1.8]
[1763675321470,8.32270595,135.03,135.01,1.8]
[1763675321784,100.0,135.07,135.02,0.67]
[1763675321785,18.12096,135.04,135.02,0.67]
[1763675321976,18.12096,135.04,135.01,1.8]
[1763675322771,8.32270595,135.06,135.02,0.67]
[1763675322968,20.01499652,135.06,135.02,0.67]
[1763675323174,7.65270595,135.05,135.01,1.8]
[1763675323377,7.65270595,135.05,135.01,2.47]
[1763675323884,7.65270595,135.04,135.01,2.47]
[1763675324088,7.65270595,135.05,135.01,2.47]
[1763675324686,7.65270595,135.04,135.01,2.47]
[1763675325078,18.12096,135.06,135.01,2.47]
[1763675325289,7.65270595,135.02,134.97,0.67]
[1763675325597,7.65270595,135.02,134.97,9.45270595]
[1763675325893,7.65270595,135.02,134.98,0.67]
[1763675326270,18.12096,135.03,134.98,0.67]
[1763675326588,7.65270595,135.01,134.98,0.67]
[1763675327397,0.47185094,135.01,134.98,0.67]
[1763675328394,7.65270595,134.99,134.97,1.8]
[1763675328606,7.65270595,134.98,134.92,0.67]
[1763675328908,118.12096,135.0,134.92,0.67]
[1763675328909,25.77366595,134.97,134.93,1.8]
[1763675329111,18.12096,134.97,134.93,1.8]
[1763675329283,21.84700132,134.97,134.94,0.67]
[1763675329676,7.65270595,134.96,134.94,0.67]
[1763675330408,21.84700132,134.97,134.94,0.67]
[1763675331210,7.65270595,134.96,134.94,0.67]
[1763675331387,2.09353855,134.96,134.94,0.67]
[1763675331788,7.65270595,134.97,134.94,0.67]
[1763675332004,7.65270595,134.98,134.94,0.67]
[1763675332201,25.77366595,134.99,134.94,18.11153364]
[1763675332705,25.77366595,134.99,134.95,0.67]
[1763675333083,7.65270595,134.97,134.95,0.67]
[1763675333284,4.79486721,134.97,134.95,0.67]
[1763675334204,18.84096,134.99,134.95,0.67]
[1763675334416,7.65270595,134.97,134.95,0.67]
[1763675335528,1.55068329,134.97,134.95,0.67]
[1763675335894,7.65270595,134.98,134.95,0.67]
[1763675336199,7.65270595,134.99,134.95,0.67]
[1763675336405,7.65270595,134.97,134.93,0.67]
[1763675336707,7.65270595,134.97,134.94,1.8]
[1763675337208,7.65270595,134.97,134.94,2.47]
[1763675337898,20.01886429,134.98,134.95,0.67]
[1763675338906,7.65270595,134.97,134.95,0.67]
[1763675339092,13.08615834,134.98,134.94,1.8]
[1763675339293,0.72,134.97,134.94,1.8]
[1763675339508,1.01097183,134.96,134.94,1.8]
[1763675340401,0.72,134.97,134.94,1.8]
[1763675340586,7.65270595,134.96,134.94,1.8]
[1763675340783,7.65270595,134.95,134.92,1.8]
[1763675340982,7.65270595,134.94,134.92,1.8]
[1763675341187,7.65270595,134.93,134.88,0.67]
[1763675341398,7.65270595,134.91,134.9,1.8]
[1763675341619,4.37415584,134.91,134.9,1.8]
[1763675341805,0.72,134.93,134.9,1.8]
[1763675342181,7.65270595,134.92,134.9,1.8]
[1763675343183,7.65270595,134.97,134.91,18.11153364]
[1763675343390,7.65270595,134.97,134.92,8.46486752]
[1763675343710,0.93900676,134.97,134.92,8.46486752]
[1763675343891,0.93900676,134.97,134.93,0.67]
[1763675344204,0.93900676,134.97,134.94,1.8]
[1763675345112,0.93900676,134.97,134.94,2.47]
[1763675345414,0.93900676,134.97,134.94,1.8]
[1763675345813,7.65270595,134.97,134.94,1.8]
[1763675346127,7.65270595,134.95,134.92,1.8]
[1763675346409,7.65270595,134.98,134.93,8.32270595]
[1763675347005,7.65270595,134.98,134.94,0.67]
[1763675347877,5.09258211,134.98,134.94,0.67]
[1763675348281,8.37270595,134.97,134.92,10.26486752]
[1763675348509,7.65270595,134.95,134.93,1.8]
[1763675349100,23.06615855,134.98,134.94,0.67]
[1763675349282,5.30883303,134.97,134.94,8.32270595]
[1763675349491,5.30883303,134.97,134.95,0.67]
[1763675349809,1.88465949,134.97,134.95,0.67]
[1763675350313,18.12096,134.98,134.95,0.67]
[1763675350833,25.77366595,134.98,134.95,0.67]
[1763675351390,25.77366595,134.98,134.95,0.07]
[1763675352120,22.87793807,134.98,134.95,0.07]
[1763675352501,22.87793807,134.98,134.94,9.78882769]
[1763675352826,7.65270595,134.97,134.93,1.8]
[1763675352993,8.37270595,134.97,134.94,1.78]
[1763675353340,12.61054485,134.97,134.94,1.78]
[1763675353612,7.65270595,134.96,134.94,1.78]
[1763675353796,13.33054485,134.97,134.94,1.78]
[1763675354629,7.65270595,134.96,134.94,1.78]
[1763675354804,7.65270595,134.95,134.89,0.67]
[1763675355010,7.65270595,134.95,134.9,1.78]
[1763675355011,7.65270595,134.92,134.9,1.78]
[1763675355221,4.9578389,134.94,134.9,2.45]
[1763675355222,7.65270595,134.93,134.9,2.45]
[1763675355631,5.6778389,134.94,134.9,0.67]
[1763675355807,4.9578389,134.93,134.91,1.78]
[1763675356202,11.01260905,134.94,134.91,1.78]
[1763675358532,7.65270595,134.93,134.91,1.78]
[1763675358916,25.77366595,134.93,134.91,1.78]
[1763675360333,8.12675971,134.93,134.9,1.78]
[1763675360535,8.37270595,134.94,134.9,1.78]
[1763675360831,8.37270595,134.94,134.9,2.44]
[1763675361043,7.65270595,134.94,134.9,2.44]
[1763675361341,7.65270595,134.95,134.9,2.44]
[1763675361539,7.65270595,134.94,134.9,2.44]
[1763675361830,5.2460773,134.93,134.91,1.78]
[1763675362008,5.2460773,134.92,134.91,1.78]
[1763675362220,12.89878325,134.92,134.87,0.86]
[1763675362416,2.93154806,134.92,134.88,1.78]
[1763675362622,2.93154806,134.92,134.88,2.44]
[1763675362832,18.12096,134.95,134.88,2.44]
[1763675363044,7.65270595,134.92,134.88,1.78]
[1763675363444,18.12096,134.95,134.89,8.31270595]
[1763675363647,0.72,134.97,134.91,7.65270595]
[1763675363966,7.65270595,134.98,134.93,7.65270595]
[1763675364126,25.77366595,134.98,134.93,7.65270595]
[1763675364445,25.77366595,134.98,134.94,0.66]
[1763675364658,8.37270595,134.98,134.94,0.66]
[1763675364954,12.68480275,134.98,134.94,0.66]
[1763675366252,0.72,134.98,134.92,2.44]
[1763675366449,12.68480275,134.98,134.93,12.62480275]
[1763675366752,12.68480275,134.98,134.93,0.66]
[1763675367249,11.96480275,134.97,134.93,0.66]
[1763675367948,0.72,134.98,134.93,0.66]
[1763675368152,11.96480275,134.97,134.93,0.66]
[1763675368648,20.11006245,134.97,134.93,0.66]
[1763675368843,12.68480275,134.96,134.92,1.78]
[1763675369357,11.96480275,134.96,134.93,0.66]
[1763675369534,11.96480275,134.96,134.92,1.78]
[1763675369724,11.96480275,134.96,134.92,2.44]
[1763675369919,12.68480275,134.96,134.92,2.44]
[1763675370360,4.99163388,134.96,134.93,0.71]
[1763675370655,6.95734812,134.99,134.93,12.67480275]
[1763675370850,6.95734812,134.99,134.94,12.67480275]
[1763675371048,6.95734812,134.99,134.94,0.71]
[1763675371225,7.65734812,134.99,134.95,0.71]
[1763675372845,18.12096,134.98,134.95,0.71]
[1763675373753,11.96480275,135.01,134.95,12.67480275]
[1763675374053,11.96480275,135.01,134.96,14.45480275]
[1763675374054,30.08576275,135.01,134.96,14.45480275]
[1763675374523,5.1877949,135.0,134.97,0.71]
[1763675374723,30.08576275,135.01,134.97,0.71]
[1763675374724,18.12096,135.01,134.97,0.71]
[1763675374945,30.08576275,135.01,134.97,0.71]
[1763675375941,11.96480275,135.0,134.97,0.71]
[1763675376852,1.95462453,135.0,134.97,0.71]
[1763675377239,18.12096,135.01,134.94,2.49]